fUST/lending_fUST_20250810
["ID","MTS","AMOUNT","RATE_DAILY","PERIOD"]
[378202885,1754783439489,-460.0,0.00021368,2]
[378202886,1754783439498,-460.0,0.00021368,2]
[378202887,1754783439508,-460.0,0.00021368,2]
[378202888,1754783439517,-460.0,0.00021368,2]
[378202889,1754783439529,-460.0,0.00021368,2]
[378202890,1754783439540,-460.0,0.00021368,2]
[378202891,1754783439550,-460.0,0.00021368,2]
[378202892,1754783439559,-460.0,0.00021369,2]
[378202893,1754783439570,-460.0,0.00021369,2]
[378202894,1754783439579,-523.69,0.00021369,2]
[378202895,1754783439589,-460.0,0.00021369,2]
[378202896,1754783439599,-460.0,0.00021369,2]
[378202897,1754783439608,-460.0,0.00021369,2]
[378202898,1754783439618,-469.18,0.00021369,2]
[378202899,1754783439628,-460.0,0.00021369,2]
[378202900,1754783439638,-241.06353282,0.00021441,2]
[378202901,1754783439648,-460.0,0.00021532,2]
[378202902,1754783439658,-500.03,0.00021532,2]
[378202903,1754783439667,-460.0,0.00021532,2]
[378202904,1754783439677,-460.0,0.00021532,2]
[378202905,1754783439687,-460.0,0.00021532,2]
[378202906,1754783439697,-460.0,0.00021532,2]
[378202907,1754783439707,-460.0,0.00021532,2]
[378202908,1754783439716,-151.0,0.00021541,2]
[378202909,1754783439726,-151.0,0.00021541,2]
[378202910,1754783439734,-247.73115803,0.00021541,2]
[378202911,1754783439743,-151.0,0.00021541,2]
[378202912,1754783439753,-151.0,0.00021541,2]
[378202913,1754783439763,-151.0,0.00021541,2]
[378202914,1754783439774,-151.0,0.00021541,2]
[378202915,1754783439786,-151.0,0.00021541,2]
[378202916,1754783439795,-500.0,0.00021541,2]
[378202917,1754783439805,-151.0,0.00021541,2]
[378202918,1754783439815,-151.0,0.00021541,2]
[378202919,1754783439825,-151.81808861,0.00021541,2]
[378202920,1754783439834,-500.0,0.00021541,2]
[378202921,1754783439844,-460.0,0.00021541,2]
[378202922,1754783439854,-460.0,0.00021541,2]
[378202923,1754783439863,-564.38,0.00021541,2]
[378202924,1754783439873,-460.0,0.00021541,2]
[378202925,1754783439884,-460.0,0.00021541,2]
[378202926,1754783439894,-199.131035,0.00021542,2]
[378202927,1754783439904,-500.0,0.00021542,2]
[378202928,1754783439914,-151.91968681,0.00021542,2]
[378202929,1754783439923,-500.0,0.00021542,2]
[378202930,1754783439933,-151.0,0.00021542,2]
[378202931,1754783439943,-500.0,0.00021542,2]
[378202932,1754783439953,-151.0,0.00021542,2]
[378202933,1754783439962,-151.0,0.00021542,2]
[378202934,1754783439972,-151.0,0.00021542,2]
[378202935,1754783439982,-460.0,0.00021642,2]
[378202936,1754783439991,-460.0,0.00021642,2]
[378202937,1754783440000,-460.0,0.00021642,2]
[378202938,1754783440010,-507.29,0.00021642,2]
[378202939,1754783440019,-152.25310919,0.00021642,2]
[378202940,1754783440031,-460.0,0.00021642,2]
[378202941,1754783440040,-1434.09,0.00021642,2]
[378202942,1754783440050,-460.0,0.00021642,2]
[378202943,1754783440059,-460.0,0.00021642,2]
[378202944,1754783440069,-460.0,0.00021642,2]
[378202945,1754783440079,-460.0,0.00021642,2]
[378202946,1754783440089,-460.0,0.00021642,2]
[378202947,1754783440098,-460.0,0.00021642,2]
[378202948,1754783440107,-460.0,0.00021642,2]
[378202949,1754783440116,-460.0,0.00021642,2]
[378202950,1754783440126,-460.0,0.00021642,2]
[378202951,1754783440135,-460.0,0.00021643,2]
[378202952,1754783440144,-460.0,0.00021643,2]
[378202953,1754783440154,-523.69,0.00021643,2]
[378202954,1754783440163,-460.0,0.00021643,2]
[378202955,1754783440172,-460.0,0.00021643,2]
[378202956,1754783440182,-469.18,0.00021643,2]
[378202957,1754783440191,-460.0,0.00021643,2]
[378202958,1754783440201,-2894.24198359,0.00021655,2]
[378202959,1754783440214,-460.0,0.00021806,2]
[378202960,1754783440224,-500.03,0.00021806,2]
[378202961,1754783440233,-460.0,0.00021806,2]
[378202962,1754783440245,-460.0,0.00021806,2]
[378202963,1754783440255,-460.0,0.00021806,2]
[378202964,1754783440265,-362.41716718,0.00021806,2]
[378202965,1754783440275,-460.0,0.00021806,2]
[378202966,1754783440285,-198.0,0.00021815,2]
[378202967,1754783440294,-151.0,0.00021815,2]
[378202968,1754783440304,-198.0,0.00021815,2]
[378202969,1754783440313,-198.0,0.00021815,2]
[378202970,1754783440323,-151.0,0.00021815,2]
[378202971,1754783440332,-151.0,0.00021815,2]
[378202972,1754783440342,-151.0,0.00021815,2]
[378202973,1754783440352,-151.0,0.00021815,2]
[378202974,1754783440362,-151.0,0.00021815,2]
[378202975,1754783440372,-500.0,0.00021815,2]
[378202976,1754783440381,-460.0,0.00021815,2]
[378202977,1754783440391,-460.0,0.00021815,2]
[378202978,1754783440401,-564.38,0.00021815,2]
[378202979,1754783440410,-460.0,0.00021815,2]
[378202980,1754783440420,-388.74,0.00021815,2]
[378202982,1754783440430,-417.63285556,0.00021816,2]
[378202984,1754783440439,-500.0,0.00021816,2]
[378202985,1754783440448,-151.0,0.00021816,2]
[378202987,1754783440458,-396.0,0.00021816,2]
[378202989,1754783440467,-153.64624334,0.00021816,2]
[378202990,1754783440476,-179.0,0.00021863,5]
[378202992,1754783440485,-460.0,0.00021916,2]
[378202993,1754783440494,-460.0,0.00021916,2]
[378202995,1754783440503,-460.0,0.00021916,2]
[378202997,1754783440513,-507.29,0.00021916,2]
[378202998,1754783440522,-460.0,0.00021916,2]
[378203000,1754783440533,-1434.09,0.00021916,2]
[378203002,1754783440543,-460.0,0.00021916,2]
[378203003,1754783440552,-460.0,0.00021916,2]
[378203005,1754783440561,-460.0,0.00021916,2]
[378203006,1754783440571,-460.0,0.00021916,2]
[378203008,1754783440581,-460.0,0.00021916,2]
[378203010,1754783440590,-460.0,0.00021916,2]
[378203011,1754783440599,-460.0,0.00021916,2]
[378203013,1754783440609,-460.0,0.00021916,2]
[378203015,1754783440618,-460.0,0.00021916,2]
[378203016,1754783440628,-460.0,0.00021917,2]
[378203018,1754783440637,-460.0,0.00021917,2]
[378203020,1754783440648,-523.69,0.00021917,2]
[378203021,1754783440657,-460.0,0.00021917,2]
[378203023,1754783440666,-460.0,0.00021917,2]
[378203024,1754783440676,-469.18,0.00021917,2]
[378203026,1754783440686,-2366.28,0.00021917,2]
[378203028,1754783440695,-460.0,0.00021917,2]
[378203029,1754783440704,-166.0,0.00022,2]
[378203031,1754783440714,-312.23,0.00022,2]
[378203033,1754783440725,-460.0,0.0002208,2]
[378203034,1754783440735,-500.03,0.0002208,2]
[378203036,1754783440744,-460.0,0.0002208,2]
[378203037,1754783440753,-460.0,0.0002208,2]
[378203039,1754783440763,-460.0,0.0002208,2]
[378203041,1754783440773,-460.0,0.0002208,2]
[378203042,1754783440783,-251.34498614,0.00022081,2]
[378203044,1754783440793,-151.0,0.00022089,2]
[378203046,1754783440802,-151.0,0.00022089,2]
[378203047,1754783440811,-198.0,0.00022089,2]
[378203049,1754783440821,-289.31681853,0.00022089,2]
[378203050,1754783440830,-151.0,0.00022089,2]
[378203052,1754783440840,-500.0,0.00022089,2]
[378203054,1754783440851,-460.0,0.00022089,2]
[378203055,1754783440860,-460.0,0.00022089,2]
[378203057,1754783440869,-564.38,0.00022089,2]
[378203059,1754783440879,-460.0,0.00022089,2]
[378203060,1754783440888,-152.57260816,0.0002209,2]
[378203062,1754783440898,-198.0,0.0002209,2]
[378203063,1754783440907,-200.0,0.00022148,15]
[378203065,1754783440917,-300.0,0.00022148,15]
[378203067,1754783440926,-460.0,0.0002219,2]
[378203068,1754783440935,-460.0,0.0002219,2]
[378203070,1754783440944,-460.0,0.0002219,2]
[378203071,1754783440954,-507.29,0.0002219,2]
[378203073,1754783440963,-180.74006195,0.0002219,2]
[378203075,1754783440973,-1434.09,0.0002219,2]
[378203076,1754783440982,-460.0,0.0002219,2]
[378203078,1754783440991,-460.0,0.0002219,2]
[378203079,1754783441000,-460.0,0.0002219,2]
[378203081,1754783441009,-460.0,0.0002219,2]
[378203083,1754783441019,-460.0,0.0002219,2]
[378203084,1754783441028,-460.0,0.0002219,2]
[378203086,1754783441037,-266.3,0.0002219,2]
[378203087,1754783441047,-460.0,0.0002219,2]
[378203089,1754783441056,-460.0,0.0002219,2]
[378203091,1754783441066,-460.0,0.00022191,2]
[378203092,1754783441075,-460.0,0.00022191,2]
[378203094,1754783441084,-523.69,0.00022191,2]
[378203096,1754783441093,-460.0,0.00022191,2]
[378203097,1754783441103,-460.0,0.00022191,2]
[378203099,1754783441112,-469.18,0.00022191,2]
[378203101,1754783441122,-460.0,0.00022191,2]
[378203102,1754783441131,-241.06353279,0.00022288,2]
[378203104,1754783441141,-460.0,0.00022354,2]
[378203105,1754783441151,-500.03,0.00022354,2]
[378203107,1754783441160,-460.0,0.00022354,2]
[378203109,1754783441169,-460.0,0.00022354,2]
[378203110,1754783441179,-255.11675244,0.00022354,2]
[378203112,1754783441188,-460.0,0.00022354,2]
[378203114,1754783441198,-197.21108823,0.00022363,2]
[378203115,1754783441212,-301.40643601,0.00022363,2]
[378203117,1754783441221,-198.0,0.00022363,2]
[378203119,1754783441230,-460.0,0.00022363,2]
[378203120,1754783441239,-460.0,0.00022363,2]
[378203122,1754783441250,-564.38,0.00022363,2]
[378203123,1754783441259,-460.0,0.00022363,2]
[378203125,1754783441268,-13011.9542726,0.00022365,2]
[378203127,1754783441279,-600.0,0.00022448,2]
[378203128,1754783441289,-454.47,0.00022464,2]
[378203130,1754783441298,-460.0,0.00022464,2]
[378203132,1754783441307,-460.0,0.00022464,2]
[378203133,1754783441317,-507.29,0.00022464,2]
[378203135,1754783441326,-1434.09,0.00022464,2]
[378203137,1754783441335,-460.0,0.00022464,2]
[378203138,1754783441344,-460.0,0.00022464,2]
[378203140,1754783441353,-460.0,0.00022464,2]
[378203142,1754783441363,-460.0,0.00022464,2]
[378203143,1754783441372,-460.0,0.00022464,2]
[378203145,1754783441382,-460.0,0.00022464,2]
[378203147,1754783441391,-460.0,0.00022464,2]
[378203148,1754783441401,-460.0,0.00022465,2]
[378203150,1754783441410,-460.0,0.00022465,2]
[378203151,1754783441421,-523.69,0.00022465,2]
[378203153,1754783441431,-460.0,0.00022465,2]
[378203155,1754783441440,-460.0,0.00022465,2]
[378203156,1754783441449,-469.18,0.00022465,2]
[378203158,1754783441459,-460.0,0.00022465,2]
[378203160,1754783441468,-460.0,0.00022628,2]
[378203161,1754783441478,-500.03,0.00022628,2]
[378203163,1754783441488,-460.0,0.00022628,2]
[378203164,1754783441498,-460.0,0.00022628,2]
[378203166,1754783441507,-460.0,0.00022628,2]
[378203168,1754783441516,-460.0,0.00022637,2]
[378203169,1754783441527,-460.0,0.00022637,2]
[378203171,1754783441536,-564.38,0.00022637,2]
[378203172,1754783441545,-460.0,0.00022637,2]
[378203174,1754783441554,-549.228265,0.00022638,2]
[378203176,1754783441563,-460.0,0.00022738,2]
[378203177,1754783441573,-460.0,0.00022738,2]
[378203179,1754783441582,-507.29,0.00022738,2]
[378203181,1754783441591,-1434.09,0.00022738,2]
[378203184,1754783441630,-460.0,0.00022738,2]
[378203186,1754783441640,-545.4039414,0.00022738,2]
[378203187,1754783441649,-460.0,0.00022738,2]
[378203189,1754783441658,-460.0,0.00022738,2]
[378203191,1754783441667,-460.0,0.00022738,2]
[378203192,1754783441677,-460.0,0.00022738,2]
[378203194,1754783441686,-460.0,0.00022738,2]
[378203195,1754783441695,-576.52,0.00022739,2]
[378203197,1754783441704,-460.0,0.00022739,2]
[378203199,1754783441713,-523.69,0.00022739,2]
[378203200,1754783441723,-460.0,0.00022739,2]
[378203202,1754783441732,-460.0,0.00022739,2]
[378203203,1754783441742,-469.18,0.00022739,2]
[378203205,1754783441751,-460.0,0.00022739,2]
[378203207,1754783441760,-527.77735381,0.00022822,2]
[378203208,1754783441769,-461.55179734,0.00022822,2]
[378203210,1754783441780,-160.0,0.00022822,2]
[378203212,1754783441790,-215.40758176,0.00022822,2]
[378203213,1754783441800,-160.0,0.00022822,2]
[378203215,1754783441809,-216.61183532,0.00022822,2]
[378203217,1754783441819,-160.0,0.00022822,2]
[378203218,1754783441828,-842.95011917,0.00022822,2]
[378203220,1754783441837,-160.0,0.00022822,2]
[378203222,1754783441847,-12666.14847857,0.00022822,2]
[378203223,1754783441856,-231.92402426,0.00022822,2]
[378203225,1754783441865,-460.0,0.00022902,2]
[378203226,1754783441874,-500.03,0.00022902,2]
[378203228,1754783441884,-461.0035306,0.00022902,2]
[378203230,1754783441893,-460.0,0.00022902,2]
[378203232,1754783441903,-460.0,0.00022902,2]
[378203234,1754783441913,-460.0,0.00022911,2]
[378203236,1754783441922,-460.0,0.00022911,2]
[378203238,1754783441931,-564.38,0.00022911,2]
[378203240,1754783441940,-460.0,0.00022911,2]
[378203242,1754783441952,-300.0,0.00022941,2]
[378203244,1754783441961,-420.0,0.00022941,2]
[378203246,1754783441970,-160.0,0.00023,2]
[378203248,1754783441979,-460.0,0.00023012,2]
[378203249,1754783441988,-460.0,0.00023012,2]
[378203250,1754783441998,-507.29,0.00023012,2]
[378203251,1754783442006,-1434.09,0.00023012,2]
[378203252,1754783442015,-460.0,0.00023012,2]
[378203253,1754783442025,-460.0,0.00023012,2]
[378203254,1754783442035,-460.0,0.00023012,2]
[378203255,1754783442045,-460.0,0.00023012,2]
[378203256,1754783442054,-460.0,0.00023012,2]
[378203257,1754783442063,-460.0,0.00023012,2]
[378203258,1754783442073,-460.0,0.00023013,2]
[378203259,1754783442082,-523.69,0.00023013,2]
[378203260,1754783442091,-460.0,0.00023013,2]
[378203261,1754783442100,-460.0,0.00023013,2]
[378203262,1754783442110,-469.18,0.00023013,2]
[378203263,1754783442119,-460.0,0.00023013,2]
[378203264,1754783442128,-166.0,0.00023014,7]
[378203265,1754783442137,-1680.0,0.0002305,2]
[378203266,1754783442147,-241.06353279,0.00023136,2]
[378203267,1754783442156,-460.0,0.00023176,2]
[378203268,1754783442165,-500.03,0.00023176,2]
[378203269,1754783442174,-460.0,0.00023176,2]
[378203270,1754783442183,-460.0,0.00023176,2]
[378203271,1754783442192,-460.0,0.00023185,2]
[378203272,1754783442202,-460.0,0.00023185,2]
[378203273,1754783442212,-564.38,0.00023185,2]
[378203274,1754783442221,-567.0616523,0.00023185,2]
[378203275,1754783442230,-312.23,0.00023195,2]
[378203276,1754783442239,-460.0,0.00023286,2]
[378203277,1754783442250,-460.0,0.00023286,2]
[378203278,1754783442259,-507.29,0.00023286,2]
[378203279,1754783442268,-1434.09,0.00023286,2]
[378203280,1754783442278,-460.0,0.00023286,2]
[378203281,1754783442288,-460.0,0.00023286,2]
[378203282,1754783442297,-460.0,0.00023286,2]
[378203283,1754783442306,-460.0,0.00023286,2]
[378203284,1754783442315,-460.0,0.00023286,2]
[378203285,1754783442325,-460.0,0.00023286,2]
[378203286,1754783442334,-460.0,0.00023287,2]
[378203287,1754783442343,-523.69,0.00023287,2]
[378203288,1754783442351,-460.0,0.00023287,2]
[378203289,1754783442361,-460.0,0.00023287,2]
[378203291,1754783442369,-469.18,0.00023287,2]
[378203292,1754783442382,-460.0,0.00023287,2]
[378203293,1754783442391,-2894.24198359,0.00023409,2]
[378203294,1754783442400,-160.0,0.00023415,2]
[378203296,1754783442410,-460.0,0.0002345,2]
[378203298,1754783442419,-500.03,0.0002345,2]
[378203300,1754783442429,-460.0,0.0002345,2]
[378203302,1754783442438,-460.0,0.0002345,2]
[378203304,1754783442448,-460.0,0.00023459,2]
[378203306,1754783442457,-460.0,0.00023459,2]
[378203308,1754783442466,-564.38,0.00023459,2]
[378203310,1754783442475,-460.0,0.0002356,2]
[378203311,1754783442484,-165.9785696,0.0002356,2]
[378203314,1754783442494,-507.29,0.0002356,2]
[378203316,1754783442504,-1434.09,0.0002356,2]
[378203317,1754783442513,-460.0,0.0002356,2]
[378203319,1754783442523,-460.0,0.0002356,2]
[378203321,1754783442532,-460.0,0.0002356,2]
[378203323,1754783442542,-460.0,0.0002356,2]
[378203325,1754783442551,-460.0,0.0002356,2]
[378203327,1754783442560,-460.0,0.0002356,2]
[378203329,1754783442570,-460.0,0.00023561,2]
[378203332,1754783442579,-523.69,0.00023561,2]
[378203333,1754783442589,-460.0,0.00023561,2]
[378203336,1754783442598,-460.0,0.00023561,2]
[378203338,1754783442607,-469.18,0.00023561,2]
[378203340,1754783442617,-460.0,0.00023561,2]
[378203341,1754783442626,-460.0,0.00023724,2]
[378203344,1754783442635,-500.03,0.00023724,2]
[378203345,1754783442644,-460.0,0.00023724,2]
[378203348,1754783442654,-460.0,0.00023724,2]
[378203350,1754783442663,-460.0,0.00023733,2]
[378203352,1754783442672,-460.0,0.00023733,2]
[378203354,1754783442681,-564.38,0.00023733,2]
[378203356,1754783442690,-404.04,0.00023834,2]
[378203358,1754783442699,-507.29,0.00023834,2]
[378203359,1754783442708,-1434.09,0.00023834,2]
[378203361,1754783442717,-460.0,0.00023834,2]
[378203364,1754783442727,-460.0,0.00023834,2]
[378203365,1754783442736,-460.0,0.00023834,2]
[378203367,1754783442745,-460.0,0.00023834,2]
[378203370,1754783442755,-460.0,0.00023834,2]
[378203372,1754783442764,-460.0,0.00023834,2]
[378203374,1754783442774,-523.69,0.00023835,2]
[378203376,1754783442783,-460.0,0.00023835,2]
[378203378,1754783442792,-529.69,0.00023835,2]
[378203380,1754783442802,-469.18,0.00023835,2]
[378203382,1754783442811,-460.0,0.00023835,2]
[378203384,1754783442820,-150.0,0.000239,2]
[378203386,1754783442829,-260.0,0.00023963,2]
[378203388,1754783442838,-241.06353279,0.00023983,2]
[378203390,1754783442848,-460.0,0.00023998,2]
[378203392,1754783442857,-500.03,0.00023998,2]
[378203394,1754783442866,-460.0,0.00023998,2]
[378203396,1754783442875,-460.0,0.00023998,2]
[378203398,1754783442884,-460.0,0.00024007,2]
[378203400,1754783442893,-265.54164664,0.00024007,2]
[378203492,1754783445086,-0.01527027,0.00021259,10]
[378203501,1754783483122,150.0,0.00025278,30]
[378203502,1754783483535,150.0,0.00027575,30]
[378203503,1754783563890,150.0,0.00025317,30]
[378203504,1754783564319,150.0,0.00027619,30]
[378203505,1754783572530,2604.81778526,0.000199,2]
[378203506,1754783615772,177.13190843,0.00020994,2]
[378203507,1754783642545,150.0,0.00025348,30]
[378203508,1754783642972,150.0,0.00027653,30]
[378203509,1754783647501,349.66263,0.00013699,2]
[378203510,1754783647710,349.66263,0.00020187,2]
[378203512,1754783674477,492.23926112,0.0002095,2]
[378203513,1754783722381,150.0,0.0002531,30]
[378203514,1754783723306,150.0,0.00027611,30]
[378203515,1754783762309,2517.49588322,0.000199,2]
[378203516,1754783804443,150.0,0.00025415,30]
[378203517,1754783804931,150.0,0.00027725,30]
[378203518,1754783887325,150.0,0.00025438,30]
[378203519,1754783887677,460.0,0.00031547,30]
[378203520,1754783887829,150.0,0.00027751,30]
[378203521,1754783931700,24900.0,0.0002017,2]
[378203522,1754783943860,411.92119875,0.00020994,2]
[378203523,1754783966271,2433.57935376,0.000199,2]
[378203524,1754783968110,150.0,0.00025883,30]
[378203525,1754783975678,328.15950741,0.0002095,2]
[378203526,1754784051638,150.0,0.00025347,30]
[378203527,1754784052116,150.0,0.00027651,30]
[378203528,1754784068140,162.244167,0.00020129,2]
[378203529,1754784082506,1000.0,0.00030137,120]
[378203530,1754784088130,257.55698192,0.00020334,2]
[378203531,1754784088153,2780.21227918,0.00020334,2]
[378203532,1754784131197,150.0,0.00025367,30]
[378203533,1754784131619,150.0,0.00027673,30]
[378203534,1754784134375,360.43104895,0.00020994,2]
[378203535,1754784138287,10000.0,0.00021,2]
[378203536,1754784170672,1719.83058252,0.000199,2]
[378203537,1754784182690,10000.0,0.00021,2]
[378203542,1754784212120,150.0,0.00025355,30]
[378203543,1754784212551,150.0,0.0002766,30]
[378203544,1754784216727,8507.91,0.00021,2]
[378203546,1754784277338,150.0,0.0002095,2]
[378203547,1754784291506,150.0,0.0002532,30]
[378203548,1754784291929,150.0,0.00027621,30]
[378203549,1754784333347,315.37716784,0.00020994,2]
[378203552,1754784373753,831.96154395,0.000199,2]
[378203553,1754784386574,150.0,0.00025251,30]
[378203554,1754784387197,150.0,0.00027547,30]
[378203555,1754784466271,150.0,0.00025533,30]
[378203556,1754784466726,150.0,0.00027854,30]
[378203558,1754784511384,200.0,0.00030007,120]
[378203559,1754784525800,275.95502186,0.00020994,2]
[378203560,1754784533310,2943.0,0.00021,2]
[378203561,1754784546078,150.0,0.00025458,30]
[378203562,1754784546501,150.0,0.00027772,30]
[378203563,1754784555788,804.22949234,0.000199,2]
[378203564,1754784579572,168.77300494,0.000189,2]
[378203568,1754784624245,150.0,0.00025386,30]
[378203569,1754784624674,150.0,0.00027694,30]
[378203611,1754784632592,-1200.0,0.00021091,2]
[378203613,1754784632601,-460.0,0.00021092,2]
[378203615,1754784632611,-300.0,0.00021092,2]
[378203617,1754784632620,-300.0,0.00021092,2]
[378203619,1754784632630,-5026.34699923,0.00021093,2]
[378203621,1754784632639,-460.0,0.00021093,2]
[378203623,1754784632648,-460.0,0.00021093,2]
[378203625,1754784632657,-460.0,0.00021093,2]
[378203627,1754784632667,-460.0,0.00021093,2]
[378203629,1754784632676,-460.0,0.00021093,2]
[378203632,1754784632685,-460.0,0.00021093,2]
[378203635,1754784632695,-460.0,0.00021093,2]
[378203638,1754784632704,-551.21286829,0.00021093,2]
[378203641,1754784632714,-460.0,0.00021093,2]
[378203644,1754784632723,-460.0,0.00021093,2]
[378203647,1754784632733,-460.0,0.00021093,2]
[378203650,1754784632742,-309.92249952,0.00021093,2]
[378203653,1754784632752,-509.55098293,0.00021093,2]
[378203656,1754784632761,-460.0,0.00021093,2]
[378203659,1754784632771,-460.0,0.00021093,2]
[378203662,1754784632780,-277.66126396,0.00021093,2]
[378203664,1754784632792,-182.33873604,0.00021093,2]
[378203666,1754784632801,-460.0,0.00021093,2]
[378203667,1754784632811,-460.0,0.00021093,2]
[378203669,1754784632822,-460.0,0.00021093,2]
[378203670,1754784632832,-460.0,0.00021093,2]
[378203671,1754784632841,-460.0,0.00021093,2]
[378203673,1754784632851,-460.0,0.00021093,2]
[378203675,1754784632861,-460.0,0.00021093,2]
[378203677,1754784632871,-537.45,0.00021093,2]
[378203679,1754784632880,-460.0,0.00021093,2]
[378203681,1754784632890,-460.0,0.00021093,2]
[378203683,1754784632899,-533.44,0.00021093,2]
[378203685,1754784632911,-460.0,0.00021093,2]
[378203687,1754784632920,-460.0,0.00021093,2]
[378203689,1754784632930,-460.0,0.00021093,2]
[378203691,1754784632940,-460.0,0.00021093,2]
[378203693,1754784632949,-460.0,0.00021093,2]
[378203695,1754784632959,-667.8,0.00021093,2]
[378203697,1754784632969,-460.0,0.00021093,2]
[378203699,1754784632979,-460.0,0.00021093,2]
[378203701,1754784632988,-460.0,0.00021093,2]
[378203703,1754784632997,-460.0,0.00021093,2]
[378203705,1754784633007,-461.98699699,0.00021093,2]
[378203707,1754784633016,-460.0,0.00021093,2]
[378203709,1754784633026,-460.0,0.00021093,2]
[378203711,1754784633037,-460.0,0.00021093,2]
[378203713,1754784633049,-460.0,0.00021093,2]
[378203715,1754784633059,-460.0,0.00021093,2]
[378203717,1754784633068,-460.0,0.00021093,2]
[378203719,1754784633078,-460.0,0.00021093,2]
[378203721,1754784633088,-574.96605875,0.00021093,2]
[378203723,1754784633098,-460.0,0.00021093,2]
[378203725,1754784633107,-464.09165306,0.00021093,2]
[378203726,1754784633118,-460.0,0.00021093,2]
[378203727,1754784633128,-460.0,0.00021093,2]
[378203728,1754784633138,-460.0,0.00021093,2]
[378203729,1754784633148,-460.0,0.00021093,2]
[378203730,1754784633158,-500.0,0.00021093,2]
[378203731,1754784633167,-460.0,0.00021093,2]
[378203732,1754784633178,-460.0,0.00021093,2]
[378203733,1754784633187,-460.0,0.00021093,2]
[378203734,1754784633197,-460.0,0.00021093,2]
[378203735,1754784633207,-206.42289639,0.00021093,2]
[378203736,1754784633217,-460.0,0.00021093,2]
[378203737,1754784633227,-460.0,0.00021093,2]
[378203738,1754784633236,-512.67,0.00021093,2]
[378203739,1754784633246,-460.0,0.00021093,2]
[378203740,1754784633255,-460.0,0.00021093,2]
[378203741,1754784633265,-461.75425252,0.00021093,2]
[378203742,1754784633275,-460.0,0.00021093,2]
[378203743,1754784633285,-156.55702977,0.00021093,2]
[378203744,1754784633299,-303.44297023,0.00021093,2]
[378203745,1754784633310,-460.0,0.00021093,2]
[378203746,1754784633320,-460.0,0.00021093,2]
[378203747,1754784633330,-460.0,0.00021093,2]
[378203748,1754784633340,-460.0,0.00021093,2]
[378203749,1754784633350,-460.0,0.00021093,2]
[378203750,1754784633360,-460.0,0.00021093,2]
[378203751,1754784633369,-462.36580427,0.00021093,2]
[378203752,1754784633380,-460.0,0.00021093,2]
[378203753,1754784633390,-460.0,0.00021093,2]
[378203754,1754784633400,-460.0,0.00021093,2]
[378203755,1754784633410,-460.0,0.00021093,2]
[378203756,1754784633419,-460.0,0.00021093,2]
[378203757,1754784633429,-460.0,0.00021093,2]
[378203758,1754784633439,-207.56785837,0.00021093,2]